Cogmind - Beta 15 @@@ ROGUE MODE // 2025.06.12 @ 16:11:35 Player: SuperSwiss Result: Destroyed by as-43635 with Assembled Blade Performance ------------- Evolutions (0) 0 Regions Visited (2) 400 Robots Destroyed (39) 195 Value Destroyed (686) 686 Prototype IDs (2) 40 Alien Tech Used (0) 0 Bonus (0) 0 TOTAL SCORE: 1321 Bonus ------- None Cogmind --------- Core Integrity 0/250 Matter 205/300 Energy 80/100 System Corruption 2% Temperature Cool (0) Movement Core (1450) Ox28 Location -10/Mines Parts ------- > --- POWER (1) -------- (None) > --- PROPULSION (2) --- (None) > --- UTILITY (2) ------ Huge Storage Unit Seismic Detector > --- WEAPON (2) ------- Grenade Launcher Grenade Launcher > --- INVENTORY (25) --- Light Ion Engine Light Treads Light Treads Improved Terrain Scanner Trap Extractor (0/4) EM Shotgun Assault Rifle Assault Rifle Grenade Launcher Grenade Launcher Grenade Launcher Grenade Launcher Grenade Launcher Mining Laser Peak State ------------ > --- POWER ------------ Ion Engine > --- PROPULSION ------- Light Treads Light Treads > --- UTILITY ---------- Small Storage Unit Seismic Detector > --- WEAPON ----------- EM Shotgun EM Shotgun > --- INVENTORY -------- Light Ion Engine Wheel Small Matter Pod Improved Terrain Scanner Trap Extractor Assault Rifle Light Assault Rifle Mining Laser [Rating: 10] Favorites ----------- Power Ion Engine Engine Ion Engine Propulsion Light Treads Treads Light Treads Wheel Compact Wheel Utility Seismic Detector Device Seismic Detector Storage Huge Storage Unit Weapon Assault Rifle Energy Gun EM Shotgun Ballistic Gun Assault Rifle Launcher Grenade Launcher Special Weapon Mining Laser Build | -11 -10 -10 ------- Run | Yrd Mat Min Slots Evolved . | . . . Power . | . . . Propulsion . | . . . Utility . | . . . Weapon . | . . . Parts Attached 22 | 7 11 4 Power 1 | 1 . . Engine 1 | 1 . . Core . | . . . Reactor . | . . . Propulsion 5 | 2 3 . Treads 3 | 2 1 . Leg . | . . . Wheel 2 | . 2 . Hover . | . . . Flight . | . . . Utility 3 | 2 1 . Device 1 | 1 . . Storage 2 | 1 1 . Processor . | . . . Hackware . | . . . Protection . | . . . Artifact . | . . . Weapon 13 | 2 7 4 Energy Gun 2 | . 2 . Energy Cannon . | . . . Ballistic Gun 4 | 2 2 . Ballistic Cannon . | . . . Launcher 6 | . 2 4 Special Weapon 1 | . 1 . Impact Weapon . | . . . Slashing Weapon . | . . . Piercing Weapon . | . . . Special Melee Weapon . | . . . Unidentified Prototypes . | . . . Parts Lost 10 | . 3 7 Power 1 | . . 1 Propulsion 4 | . 1 3 Utility . | . . . Weapon 5 | . 2 3 Highest Loss Streak 5 | . 1 5 To Critical Strikes . | . . . Average Backups 12 | 3 13 15 Power . | . 1 1 Propulsion 2 | . 2 2 Utility 2 | . 2 2 Weapon 7 | 1 7 10 Tool/Special . | . . . Unused Backups 10 | . 2 8 Power 1 | . . 1 Propulsion 1 | . . 1 Utility 3 | . 1 2 Weapon 5 | . 1 4 Tool/Special . | . . . Average Slot Usage (%) 99 | . 99 94 Engine 13 | . 14 12 Treads 18 | . 18 12 Wheel 9 | . 9 12 Device 14 | . 14 14 Storage 14 | . 14 14 Energy Gun 5 | . 5 8 Ballistic Gun 16 | . 16 11 Launcher 3 | . 2 6 Special Weapon 2 | . 2 . Peak Build Rating 10 | 7 10 9 Average Rating 8 | 5 8 8 On Entrance 5 | . 7 9 Naked Turns . | . . . Heaviest Build 92 | 14 92 92 Greatest Support 40 | 40 40 10 Greatest Overweight (x) 9 | 4 9 9 Average Overweight (x) 3 | . 3 9 Largest Inventory Capacity 25 | 8 25 25 Average Capacity 19 | 7 19 25 Most Carried 18 | 6 18 17 Average Carried 12 | 3 13 15 Final Capacity 25 | 8 25 25 Final Carried 17 | 6 17 14 Class Distribution -------------------- 100% | Mutant Dominant Class ---------------- Mutant | -10/Materials Mutant | -10/Mines Resources | -11 -10 -10 ----------- Run | Yrd Mat Min Matter Collected 798 | 331 442 25 Remotely . | . . . Salvage Created 993 | 39 869 85 Parts 89 | 6 79 4 Haulers Intercepted 2 | . 2 . Recyclers Shooed 3 | 1 2 . Parts Field Recycled . | . . . Retrieved Matter . | . . . Parts Self-Destructed . | . . . Prevented . | . . . Kills | -11 -10 -10 ------- Run | Yrd Mat Min Combat Hostiles Destroyed 37 | . 22 15 Guns 16 | . 13 3 AOE 21 | . 9 12 Classes Destroyed 9 | 2 6 1 Worker 3 | 1 2 . Builder 2 | . 2 . Tunneler 2 | 1 1 . Hauler 2 | . 2 . Recycler 2 | . 2 . Watcher 3 | . 3 . Swarmer 12 | . 9 3 Grunt 13 | . 13 . Assembled 12 | . . 12 Best Kill Streak 12 | 1 6 12 Combat Bots Only 12 | . 3 12 Max Kills in Single Turn 8 | 1 3 8 Gunslinging . | . . . Exploded 8 | . 2 8 Melee . | . . . Uniques/NPCs Destroyed . | . . . Combat | -11 -10 -10 -------- Run | Yrd Mat Min Hostile Shots Fired 132 | . 89 43 Missed 33 | . 17 16 Hits 99 | . 72 27 Melee 3 | . . 3 Projectile 96 | . 72 24 Critical Strikes 3 | . 3 . Damage Taken 1362 | . 860 502 Core 272 | . 102 170 Absorbed by Shields . | . . . Core Remaining (%) 100 | 100 . . Volleys Fired 88 | 5 75 8 Largest 2 | 2 2 2 Hottest 100 | 40 100 65 Shots Fired 146 | 10 120 16 Gun 108 | 10 90 8 Cannon . | . . . Launcher 18 | . 10 8 Special 20 | . 20 . Kinetic 72 | 10 57 5 Thermal 20 | . 20 . Explosive 18 | . 10 8 Electromagnetic 36 | . 33 3 Robot Hit Streak 9 | 4 9 4 Robot Miss Streak 6 | 1 6 3 Penetration Max . | . . . Secondary Targets 5 | . 5 . Max Gunslinging Chain 1 | . 1 . Shots Hit Robots 89 | 6 74 9 Core Hits 81 | 2 48 31 Critical Kills . | . . . Critical Parts Destroyed . | . . . Critical Strikes . | . . . Melee Attacks . | . . . Impact . | . . . Slashing . | . . . Piercing . | . . . Sneak Attacks . | . . . Combat Hostiles . | . . . Follow-up Attacks . | . . . Damage Inflicted 2588 | 65 1555 968 Guns 895 | 65 783 47 Cannons . | . . . Explosions 1619 | . 698 921 Melee . | . . . Ramming 2 | . 2 . Kinetic 593 | 65 504 24 Thermal 95 | . 95 . Explosive 1596 | . 675 921 Electromagnetic 302 | . 279 23 Impact . | . . . Slashing . | . . . Piercing . | . . . Highest Corruption 2 | . 2 2 Average Corruption 2 | . 2 2 Corruption Purged . | . . . Corruption Blocked . | . . . Effects 22 | . 22 . Message Errors 1 | . 1 . Matter Fused 7 | . 7 . Heat Flow Errors 5 | . 5 . Energy Discharges 3 | . 3 . Data Loss (minor) 3 | . 3 . Misfires 2 | . 2 . Alerts 1 | . 1 . Overload Shots . | . . . Overflow Damage 56 | . 4 52 Projectiles . | . . . Explosions 56 | . 4 52 Melee . | . . . Knockbacks . | . . . Impact . | . . . Kinetic . | . . . Secondary . | . . . Self-Inflicted Damage 174 | . 40 134 Shots 10 | . 4 6 Rammed 1 | . 1 . Targets Rammed 1 | . 1 . Kicked . | . . . Crushed . | . . . Highest Temperature 276 | . 276 15 Average Temperature 51 | . 54 7 Received Heat Transfer 483 | . 423 60 Siege Activations . | . . . Martial Activations . | . . . Shielding Activations . | . . . Robots Disrupted . | . . . Combat Hostiles . | . . . Robots Corrupted . | . . . Combat Hostiles . | . . . Parts Fried . | . . . Impact Corruptions . | . . . Robots Melted . | . . . Combat Hostiles . | . . . Parts Melted . | . . . Heat Transferred 200 | . 200 . Parts Sabotaged . | . . . Parts Stolen . | . . . Parts Stripped . | . . . Power Chain Reactions 1 | . 1 . Alert | -11 -10 -10 ------- Run | Yrd Mat Min Maximum Alert Level 1 | . 1 . Low Security (%) 90 | 100 89 100 Level 1 9 | . 10 . Level 2 . | . . . Level 3 . | . . . Level 4 . | . . . Level 5 . | . . . High Security . | . . . Max Security . | . . . Peak Influence 257 | 5 257 142 Initial 92 | . . 92 Average 86 | . 90 117 Influence Increases 829 | 10 718 101 Destroy 0b10 Robot/C 500 | . 440 60 Destroy 0b10 Robot/NC 70 | 10 60 . Destroy Leader 110 | . 100 10 Successful Hack 9 | . 9 . Disable Machine 30 | . 30 . Destroy Structure 80 | . 49 31 Lose Combat Pursuer 30 | . 30 . Influence Decreases 746 | 10 481 255 Entered New Map 145 | . . 145 Time Decay 501 | 10 451 40 Lost Part 100 | . 30 70 Squads Dispatched 5 | . 5 . Investigation 4 | . 4 . Extermination . | . . . Reinforcement 1 | . 1 . Assault . | . . . Garrison . | . . . Intercept . | . . . Searches Triggered . | . . . Construction Impeded . | . . . Haulers Reinforced . | . . . Active Scanning Responses . | . . . Cargo Convoy Interrupts . | . . . Stealth | -11 -10 -10 --------- Run | Yrd Mat Min Distress Signals 1 | . 1 . Communications Jammed . | . . . Distress Signals . | . . . Times Spotted 54 | . 32 22 Peak Tracking Total 18 | . 5 18 Tactical Retreats 2 | . 2 . Traps | -11 -10 -10 ------- Run | Yrd Mat Min Traps Triggered 4 | . 4 . Indirectly . | . . . Trap Hack Attempts . | . . . Triggered . | . . . Disarmed . | . . . Reprogrammed . | . . . Reused . | . . . Traps Extracted . | . . . Installed . | . . . Triggered . | . . . Machines | -11 -10 -10 ---------- Run | Yrd Mat Min Machines Disabled 2 | . 2 . Max in Single Turn 1 | . 1 . Machines Repaired . | . . . Machines Dismantled . | . . . Machines Sabotaged . | . . . Overloaded Fab Kills . | . . . Hacking | -11 -10 -10 --------- Run | Yrd Mat Min Machines Accessed 9 | . 9 . Terminals 7 | . 7 . Fabricators . | . . . Repair Stations . | . . . Recycling Units 2 | . 2 . Scanalyzers . | . . . Garrison Access . | . . . Total Hacks 27 | . 27 . Successful 8 | . 8 . Failed 19 | . 19 . Catastrophic 1 | . 1 . Database Lockouts . | . . . Manual 20 | . 20 . Terminals 24 | . 24 . Fabricators . | . . . Repair Stations . | . . . Recycling Units 3 | . 3 . Scanalyzers . | . . . Garrison Access . | . . . Terminal Hacks 2 | . 2 . Robot Analysis 1 | . 1 . Prototype ID Bank 1 | . 1 . Fabricator Hacks . | . . . Repair Station Hacks . | . . . Recycling Unit Hacks 2 | . 2 . Report Inventory 2 | . 2 . Scanalyzer . | . . . Garrison Access Hacks . | . . . Unauthorized Hacks 4 | . 4 . Terminals 4 | . 4 . Botnet 4 | . 4 . Fabricators . | . . . Repair Stations . | . . . Recycling Units . | . . . Scanalyzers . | . . . Garrison Access . | . . . Data Cores Recovered . | . . . Used . | . . . Hacking Detections 7 | . 7 . Full Trace Events 4 | . 4 . Feedback Events . | . . . Feedback Blocked . | . . . Robot Schematics Acquired . | . . . Robots Built . | . . . Authchips . | . . . Time . | . . . Total Robot Build Rating . | . . . Part Schematics Acquired . | . . . Parts Built . | . . . Authchips . | . . . Time . | . . . Total Part Build Rating . | . . . Parts Repaired . | . . . Time . | . . . Parts Recycled . | . . . Recycled Matter . | . . . Retrieved Matter . | . . . Retrieved Components . | . . . Parts Scanalyzed . | . . . Part Schematics Acquired . | . . . Parts Damaged . | . . . Bothacking | -11 -10 -10 ------------ Run | Yrd Mat Min Used RIF Installer . | . . . Robots Hacked . | . . . Non-combat . | . . . Combat . | . . . Robot Hacks Applied . | . . . Relay Couplers Released . | . . . Fabnet Peak Effective % . | . . . Robots Rewired . | . . . Allies Hacked . | . . . Hacks Repelled . | . . . Allies | -11 -10 -10 -------- Run | Yrd Mat Min Total Allies . | . . . Largest Group . | . . . Highest-Rated Group . | . . . Highest-Rated Ally . | . . . Total Orders . | . . . Ally Attacks . | . . . Total Damage . | . . . Kills . | . . . Allies Corrupted . | . . . Allies Melted . | . . . Intel | -11 -10 -10 ------- Run | Yrd Mat Min Active Infowar (turns) 2180 | 56 2028 96 Seismic 2180 | 56 2028 96 Robot Analysis Total 1 | . 1 . Derelict Logs Recovered . | . . . Drone Launches . | . . . Drone Recoveries . | . . . Exploration | -11 -10 -10 ------------- Run | Yrd Mat Min Turns Passed 2249 | 125 2028 96 Spaces Moved 1094 | 59 1005 30 Core 12 | 12 . . Treads 378 | 47 331 . Legs . | . . . Wheels 704 | . 674 30 Hover . | . . . Flight . | . . . Fastest Speed 50 | 50 160 215 Average Speed 171 | 161 170 215 Slowest Speed 480 | 250 480 215 Overloaded Moves . | . . . Propulsion Burnouts . | . . . Robots Hopped . | . . . Potential Cave-ins . | . . . Cave-ins Triggered . | . . . Exploration Rate (%) 40 | 5 98 18 Regions Visited 2 Branch Regions 1 Pre-discovered Areas . | . . . Known Exits Taken . | . . . Unknown Exits Taken 2 | 1 1 . Scrap Searched 1 | . . 1 Spaces Dug . | . . . Terrain Destroyed 90 | . 54 36 Melee . | . . . Projectile 6 | . 6 . AOE 84 | . 48 36 Terrain Rammed . | . . . Walls Destroyed . | . . . Machines Disabled . | . . . Actions | -11 -10 -10 --------- Run | Yrd Mat Min Total 1278 | 76 1157 45 Wait 43 | . 43 . Move 1092 | 58 1004 30 Hop . | . . . Pick Up 24 | 6 17 1 Fast Attach 7 | 7 . . Attach 7 | . 3 4 Detach . | . . . Swap 12 | . 10 2 Drop 4 | . 4 . Fire 88 | 5 75 8 Melee . | . . . Ram . | . . . Kick . | . . . Crush 1 | . 1 . Escape Stasis . | . . . Rewire . | . . . Trap . | . . . Miscellaneous . | . . . Route ------- -11/Scrapyard -10/Materials (discovered 6 exits: [*Mat x3] / [*Min x2] / [*Sub]) -10/Mines History --------- Turn | Location | Event 23 | -11/Scrapyard | Discovered new exit (range 15) 126 | -11/Scrapyard | Entered Materials 316 | -10/Materials | Build established: Mutant 338 | -10/Materials | Discovered new exit (range 10) 573 | -10/Materials | Discovered new exit (range 10) 1172 | -10/Materials | Discovered new exit (range 16) 1256 | -10/Materials | Discovered new exit (range 10) 1512 | -10/Materials | Discovered new exit (range 10) 1536 | -10/Materials | Discovered new exit (range 14) 2154 | -10/Materials | Entered Mines 2220 | -10/Mines | Assembled infested the area 2237 | -10/Mines | Core integrity fell below 50% 2249 | -10/Mines | Core integrity fell below 20% 2250 | -10/Mines | Destroyed by as-43635 with Assembled Blade Last Messages --------------- 02240_ Lgt. Treads destroyed. 02240_ Destroyed Lgt. Treads. 02240_ Wheel destroyed. 02240_ Destroyed Wheel. 02242_ Grenade Launcher destroyed. 02244_ Destroyed Asb. Hover Unit. 02244_ Destroyed Asb. F-torch. 02244_ as-98671 destroyed. 02247_ as-52046 destroyed. 02247_ as-34792 destroyed. 02247_ as-95041 destroyed. 02247_ as-41001 destroyed. 02247_ Destroyed Asb. Hover Unit. 02247_ as-52090 destroyed. 02247_ as-59727 destroyed. 02247_ Destroyed Asb. Hover Unit. 02247_ as-41021 destroyed. 02247_ as-46016 destroyed. 02247_ as-70434 destroyed. 02248_ Grenade Launcher destroyed. Map ----- +----------------------------------------------------+ | ???????????????????????????????????????????? | | ???????????????????????????????????????????? | | ???????????????????????????????????????????? | | ???????????????????????????????????????????? | | ???????????????????????????????????????????? | | ???????????????????????????????????????????? | | ???????????????????????????????????????????? | | ???????????????????????????????????????????? | | ???????????????????????????????????????????? | | ???????????????# ?????????????????????????? | | ??????????????# ?????????????????????????? | | ????????????? ?????????????????????????? | | ???????????? ?????????????????????????? | | ???????????? ???##????????????????????? | | ???????????? ??? ##?#?????????< ??????? | | ???????????? #??? ## ###????? ??????? | | ???????????? #??? ###?? ?????? | | ????????????# #### #? ?????? | | ?????????????# ## ##aa #??????? | | ??????????????# # #???????? | | ??????????????# ## #???????? | | ??????????????# #? #????????? | | ???????????#### ### a% #????????? | | ???????????# # #????????? | | ???????????# ## aaaa % #?????????? | | ???????????# ## @ #?????????? | | ???????????# ### #?????????? | | ???????????# #?#### #????????? | | ?????# ### #????## ### ## #???????? | | ??????# !%#?????# ##??##??? ?????? | | ??????## ### #?????# #?????????? ????? | | ??????????## #####?## #???????????? ????? | | ??????????# =%#??#####??????????????????? | | ??????????# *#?????????????????????????? | | ??????????# #?????????????????????????? | | ??????????# = #?????????????????????????? | | ??????????# #?????????????????????????? | | ??????????# %= #?????????????????????????? | | ??????????########?????????????????????????? | | ???????????????????????????????????????????? | | ???????????????????????????????????????????? | | ???????????????????????????????????????????? | | ???????????????????????????????????????????? | | ???????????????????????????????????????????? | | ???????????????????????????????????????????? | | ???????????????????????????????????????????? | | ???????????????????????????????????????????? | | ???????????????????????????????????????????? | | ???????????????????????????????????????????? | | ???????????????????????????????????????????? | +----------------------------------------------------+ Best States ------------- Heat Dissipation 25 Energy Generation 10 Energy Capacity 250 Matter Stores 300 Matter Capacity 300 Sight Range 16 Terrain Scan Density 10 Evasion (%) 40 Recoil Reduction 2 Item Schematics ----------------- None Robot Schematics ------------------ None Fabricated ------------ Nothing Repaired ---------- Nothing Alien Tech Used ----------------- None Achievements -------------- None Challenges ------------ None Game ------ Seed InertialHardcellDiverter Manual? 0 Play Time 00:15:53 Cumulative 85.6 hours Start 2025.06.12 @ 15:50:43 End 2025.06.12 @ 16:11:35 Sessions 1 Manual Loads 0 Difficulty Rogue Special Mode None Game No. 83 Rogue 80 Adventurer 0 Explorer 3 Win Type - Total 1 Types 1/0/0/0/0/0/0/0/0/0 Lore% 19 Gallery% 40 Achievement% 36 Wizard Run 0 Options --------- Layout 0 ASCII 0 Keyboard 0 Movement Numpad Keybinds 0 Fullscreen 0 Font 16/SmallcapsGlow Map View 88x55 Zoom Use 0% Tactical HUD 1 Map Filters NONE Filters NONE Steam 1 RUN: b2528ffc-7629-479d-aca6-97dd0bd25615